lending/lending_fUSD_20240120
["ID","MTS","AMOUNT","RATE_DAILY","PERIOD"]
[312336136,1705791040247,-155.0,0.00022994,2]
[312336137,1705791040257,-434330.83913996,0.00022996,2]
[312336138,1705791040266,-244.84553355,0.00022997,2]
[312336139,1705791040275,-151.0121,0.00022997,3]
[312336140,1705791040284,-151.0121,0.00022997,3]
[312336141,1705791040293,-214.0121,0.00022997,3]
[312336142,1705791040302,-45606.41025856,0.00022999,2]
[312336143,1705791040316,-238236.89974144,0.00022999,2]
[312336144,1705791040325,-150.0,0.00022999,2]
[312336145,1705791040335,-150.0,0.00022999,2]
[312336146,1705791040344,-150.0,0.00022999,2]
[312336147,1705791040353,-150.0,0.00022999,2]
[312336148,1705791040362,-150.0,0.00022999,2]
[312336149,1705791040372,-150.0,0.00022999,2]
[312336150,1705791040381,-150.0,0.00022999,2]
[312336151,1705791040391,-150.0,0.00022999,2]
[312336152,1705791040400,-150.0,0.00022999,2]
[312336153,1705791040410,-150.0,0.00022999,2]
[312336154,1705791040419,-150.0,0.00022999,2]
[312336155,1705791040428,-150.0,0.00022999,2]
[312336156,1705791040437,-150.0,0.00022999,2]
[312336157,1705791040446,-150.0,0.00022999,2]
[312336159,1705791040455,-150.0,0.00022999,2]
[312336161,1705791040465,-150.0,0.00022999,2]
[312336163,1705791040475,-150.0,0.00022999,2]
[312336165,1705791040484,-150.0,0.00022999,2]
[312336167,1705791040493,-259.08859484,0.00022999,2]
[312336169,1705791040502,-150.0,0.00022999,2]
[312336171,1705791040511,-150.0,0.00022999,2]
[312336172,1705791040524,-59358.46738851,0.00023,3]
[312336175,1705791040537,-738.54219566,0.00023,3]
[312336177,1705791040548,-6571.10270163,0.00023,3]
[312336179,1705791040559,-5707.10907528,0.00023,3]
[312336181,1705791040571,-508.54551295,0.00023,3]
[312336184,1705791040582,-674.975,0.00023,3]
[312336186,1705791040595,-911.59848134,0.00023,3]
[312336193,1705791040643,-2500.0,0.00023,3]
[312336195,1705791040655,-2212.0210525,0.00023,3]
[312336197,1705791040666,-1711.8021486,0.00023,3]
[312336200,1705791040679,-600.1668679,0.00023,3]
[312336202,1705791040691,-570.11595972,0.00023,3]
[312336238,1705791041012,-377.0614235,0.00019845,2]
[312336240,1705791041022,-242.58443095,0.00019845,2]
[312336242,1705791041031,-433.22914555,0.00019845,2]
[312336285,1705791041462,-55.02216835,0.00019845,2]
[312336287,1705791041471,-215.18715609,0.00019845,2]
[312336289,1705791041481,-155.0,0.00019845,2]
[312336291,1705791041491,-158.86466524,0.00019845,2]
[312336293,1705791041500,-281.33314643,0.0002044,2]
[312336295,1705791041510,-22610.76393888,0.00023,3]
[312336297,1705791041524,-622.25789303,0.00023,3]
[312336300,1705791041535,-4909.94214205,0.00023,3]
[312336302,1705791041547,-1884.835,0.00023,3]
[312336305,1705791041564,-310.08111749,0.00023,3]
[312336310,1705791041606,-323154.67172045,0.00023,3]
[312336313,1705791041619,-1254.14327998,0.00023,3]
[312336315,1705791041631,-15676.81570379,0.00023,3]
[312336459,1705791043110,-297.87035,0.00019844,2]
[312336460,1705791043168,-1067.46722079,0.00019844,2]
[312336461,1705791043177,-99332.53277901,0.00023,3]
[312336462,1705791043226,-3826.41334144,0.00023,3]
[312336463,1705791043237,-651.06340159,0.00023,3]
[312336464,1705791043250,-870.84315419,0.00023,3]
[312336465,1705791043262,-288.11805248,0.00023,3]
[312336466,1705791043285,-155.0,0.00022999,2]
[312336467,1705791043294,-424.81418838,0.00023,3]
[312336468,1705791043306,-2716.81742321,0.00023,3]
[312336469,1705791043317,-3537.8863108,0.00023,3]
[312336470,1705791043346,-297.3888589,0.00023,3]
[312336486,1705791047046,-261.60174887,0.00022999,2]
[312336487,1705791047112,-2784.0423372,0.00022999,2]
[312336488,1705791047124,-155.0,0.00022999,2]
[312336489,1705791047135,-767.00185016,0.00022999,2]
[312336490,1705791047145,-434.90817382,0.00022999,2]
[312336491,1705791047154,-1153.55119039,0.00022999,2]
[312336492,1705791047171,-49.66986363,0.00022999,2]
[312336493,1705791047181,-227.95107371,0.00022999,2]
[312336494,1705791047192,-401.16507316,0.00022999,2]
[312336495,1705791047217,-6350.98677237,0.00022999,2]
[312336496,1705791047228,-9789.37954568,0.00022999,2]
[312336497,1705791047238,-1256.70561379,0.00022999,2]
[312336498,1705791047248,-303.86940468,0.00022999,2]
[312336499,1705791047258,-302.37969356,0.00022999,2]
[312336500,1705791047267,-34561.96494399,0.00023,3]
[312336501,1705791047279,-15939.8,0.00023,3]
[312336502,1705791047291,-430.22874,0.00023,3]
[312336503,1705791047307,-253.7535,0.00023,3]
[312336505,1705791264226,255.60767087,0.00035899,120]
[312336506,1705791393104,269.71,0.0003589,30]
[312336526,1705791569282,365.87,0.0001838,2]
[312336527,1705791625954,3006.32021403,0.0001838,2]
[312336528,1705791643660,3095.03366049,0.0001838,2]
[312336529,1705791737426,1009.25724893,0.000196,2]
[312336530,1705791738002,188.78145913,0.00019585,2]
[312336531,1705791790514,237.740502,0.00035912,30]
[312336542,1705792232168,-158.86466524,0.00019609,2]
[312336543,1705792232178,-286.78293325,0.0001961,2]
[312336544,1705792232188,-3045.64408607,0.0001961,2]
[312336546,1705792232197,-418.28828988,0.0001961,2]
[312336547,1705792232206,-74.56508506,0.0001961,2]
[312336551,1705792232601,-158.73184456,0.0001961,2]
[312336552,1705792232611,-1709.96186533,0.0001961,2]
[312336553,1705792232620,-371.36730385,0.00019611,2]
[312336554,1705792232630,-327.32790039,0.00019611,2]
[312336555,1705792232639,-407.19395765,0.00019611,2]
[312336556,1705792232648,-221.15744731,0.00019611,2]
[312336557,1705792232658,-473.45584329,0.00019612,2]
[312336558,1705792232667,-218.05929931,0.00019612,2]
[312336559,1705792232676,-164.39591223,0.00019612,2]
[312336560,1705792232701,-212.66551127,0.00019612,2]
[312336561,1705792232710,-10560.1340318,0.00019612,2]
[312336562,1705792232719,-1915.89251298,0.00019612,2]
[312336563,1705792232729,-4638.11355098,0.00019612,2]
[312336564,1705792232738,-215.18715609,0.00019612,2]
[312336565,1705792232748,-242.58443095,0.00019612,2]
[312336566,1705792232757,-1853.21827402,0.00019613,2]
[312336567,1705792232767,-2320.76864865,0.00019613,2]
[312336568,1705792232777,-228.3967642,0.00019613,2]
[312336569,1705792232786,-302.37969356,0.00019613,2]
[312336570,1705792232796,-250.42352751,0.00019613,2]
[312336571,1705792232805,-404.48659624,0.00019614,2]
[312336572,1705792232814,-629.1543526,0.00019614,2]
[312336573,1705792232824,-301.41783471,0.00019614,2]
[312336574,1705792232833,-337.77789618,0.00019614,2]
[312336575,1705792232844,-3145.8449708,0.00019614,2]
[312336576,1705792232855,-2307.835347,0.00019614,2]
[312336577,1705792232868,-150.0,0.00019614,2]
[312336578,1705792232878,-310.31123781,0.00019615,2]
[312336579,1705792232887,-651.85793696,0.00019615,2]
[312336580,1705792232897,-155.0,0.00019615,2]
[312336581,1705792232906,-314.41237187,0.00019615,2]
[312336582,1705792232916,-2903.08663668,0.00019615,2]
[312336583,1705792232925,-190.97652873,0.00019615,2]
[312336584,1705792232936,-1768.73893958,0.00019615,2]
[312336585,1705792232945,-265.60479765,0.00019616,2]
[312336586,1705792232954,-525.07174403,0.00019616,2]
[312336587,1705792232962,-202.76099161,0.00019616,2]
[312336588,1705792232972,-488.2513139,0.00019616,2]
[312336589,1705792232981,-226.11786442,0.00019617,2]
[312336590,1705792232990,-4248.79641024,0.00019617,2]
[312336591,1705792233000,-5217.27578484,0.00019617,2]
[312336592,1705792233010,-199.32847921,0.00019617,2]
[312336593,1705792233020,-2948.28581293,0.00019617,2]
[312336594,1705792233031,-10529.67645274,0.00019617,2]
[312336595,1705792233040,-155.0,0.00019617,2]
[312336596,1705792233049,-529.54586696,0.00019617,2]
[312336597,1705792233059,-260.29229258,0.00019617,2]
[312336598,1705792233068,-155.0,0.00019618,2]
[312336599,1705792233077,-1044.43077942,0.00019618,2]
[312336600,1705792233086,-150.0,0.00019623,2]
[312336601,1705792233096,-27066.39628564,0.00019668,2]
[312336602,1705792233106,-268.9978855,0.00019687,2]
[312336603,1705792233116,-290.5753,0.00019751,2]
[312336604,1705792233126,-23900.0,0.00019826,2]
[312336605,1705792233134,-198.86,0.00019856,10]
[312336606,1705792233144,-250.0,0.00019897,2]
[312336607,1705792233153,-288.0,0.00019923,2]
[312336608,1705792233163,-649.38,0.00019941,2]
[312336609,1705792233172,-166.64,0.00019979,2]
[312336610,1705792233181,-6441.03694263,0.00019998,2]
[312336611,1705792233190,-354.6810307,0.00019998,2]
[312336612,1705792233199,-155.0,0.0002,2]
[312336613,1705792233208,-6653.0,0.0002,2]
[312336614,1705792233217,-281.33314643,0.0002,2]
[312336615,1705792233227,-155.0,0.0002,2]
[312336616,1705792233236,-158.03,0.00020038,2]
[312336617,1705792233245,-203.37274756,0.00020166,2]
[312336618,1705792233254,-178.38,0.00020168,2]
[312336619,1705792233264,-395.40113788,0.00020169,2]
[312336620,1705792233274,-178.56,0.00020185,2]
[312336621,1705792233283,-178.38,0.0002019,2]
[312336622,1705792233292,-178.38,0.00020211,2]
[312336623,1705792233301,-178.38,0.00020232,2]
[312336624,1705792233310,-178.56,0.0002024,2]
[312336625,1705792233320,-178.38,0.00020253,2]
[312336626,1705792233329,-178.38,0.00020274,2]
[312336627,1705792233337,-178.56,0.00020295,2]
[312336628,1705792233347,-178.38,0.00020296,2]
[312336629,1705792233356,-178.38,0.00020317,2]
[312336630,1705792233366,-178.38,0.00020338,2]
[312336631,1705792233375,-178.56,0.00020351,2]
[312336632,1705792233385,-178.38,0.00020359,2]
[312336633,1705792233395,-712.0,0.00020367,2]
[312336634,1705792233404,-178.38,0.00020381,2]
[312336635,1705792233413,-1377.601495,0.00020396,2]
[312336636,1705792233423,-178.38,0.00020402,2]
[312336637,1705792233433,-178.56,0.00020406,2]
[312336638,1705792233443,-178.38,0.00020423,2]
[312336639,1705792233453,-178.38,0.00020444,2]
[312336640,1705792233462,-178.56,0.00020461,2]
[312336641,1705792233471,-178.38,0.00020466,2]
[312336642,1705792233481,-169.53,0.0002047,2]
[312336643,1705792233492,-178.38,0.00020487,2]
[312336644,1705792233503,-178.38,0.00020508,2]
[312336645,1705792233514,-178.56,0.00020517,2]
[312336646,1705792233524,-178.38,0.00020529,2]
[312336647,1705792233536,-2000.0,0.00020548,2]
[312336648,1705792233546,-178.38,0.0002055,2]
[312336649,1705792233555,-178.38,0.00020572,2]
[312336650,1705792233566,-178.56,0.00020572,2]
[312336651,1705792233575,-178.56,0.00020628,2]
[312336652,1705792233585,-365.87,0.00020644,2]
[312336653,1705792233594,-178.56,0.00020683,2]
[312336654,1705792233603,-178.56,0.00020738,2]
[312336655,1705792233613,-158.03,0.00020792,2]
[312336656,1705792233622,-178.56,0.00020794,2]
[312336657,1705792233631,-178.56,0.00020849,2]
[312336658,1705792233640,-178.56,0.00020904,2]
[312336659,1705792233651,-178.56,0.0002096,2]
[312336660,1705792233661,-178.56,0.00021015,2]
[312336661,1705792233669,-178.56,0.00021071,2]
[312336662,1705792233678,-178.56,0.00021126,2]
[312336663,1705792233687,-178.56,0.00021181,2]
[312336664,1705792233696,-178.56,0.00021237,2]
[312336665,1705792233705,-188.78145912,0.00021243,2]
[312336666,1705792233715,-155.0,0.00021516,2]
[312336667,1705792233724,-158.03,0.00021546,2]
[312336668,1705792233733,-649.38,0.00021585,2]
[312336669,1705792233742,-210.0,0.00021585,2]
[312336670,1705792233750,-186.97,0.00021644,2]
[312336671,1705792233759,-204.0,0.00021836,2]
[312336672,1705792233769,-155.0,0.00021843,2]
[312336673,1705792233778,-529.8021149,0.00021846,7]
[312336674,1705792233787,-153.53,0.00021892,2]
[312336675,1705792233797,-250.0,0.00021918,2]
[312336676,1705792233806,-176.36,0.00022,2]
[312336677,1705792233815,-500.0,0.00022,2]
[312336678,1705792233824,-257.02,0.00022,2]
[312336679,1705792233834,-1042.29691372,0.00022,2]
[312336680,1705792233843,-300.0,0.00022,2]
[312336681,1705792233852,-153.53,0.00022038,2]
[312336682,1705792233864,-984.1483942,0.00022077,2]
[312336683,1705792233873,-257.02,0.00022137,2]
[312336684,1705792233882,-153.53,0.00022184,2]
[312336685,1705792233891,-3904.34903937,0.00022274,3]
[312336686,1705792233902,-257.02,0.00022274,2]
[312336687,1705792233910,-158.03,0.000223,2]
[312336688,1705792233919,-153.53,0.0002233,2]
[312336689,1705792233928,-379.70289,0.00022336,2]
[312336690,1705792233939,-510.39,0.00022411,2]
[312336691,1705792233948,-288.0,0.00022414,2]
[312336692,1705792233957,-186.97,0.00022445,2]
[312336693,1705792233966,-1980.4079,0.00022464,2]
[312336694,1705792233975,-445.4357,0.00022464,2]
[312336695,1705792233984,-319.8866,0.00022464,2]
[312336696,1705792233993,-10652.106,0.00022464,2]
[312336697,1705792234003,-214.9954,0.00022464,2]
[312336698,1705792234012,-1728.0692,0.00022464,2]
[312336699,1705792234021,-1000.0,0.00022464,2]
[312336700,1705792234030,-2500.0,0.00022464,2]
[312336701,1705792234040,-167.0230573,0.00022469,2]
[312336702,1705792234048,-402.17763394,0.00022469,2]
[312336703,1705792234057,-274.93580453,0.00022492,2]
[312336704,1705792234066,-402.17763389,0.00022531,2]
[312336705,1705792234075,-176.36,0.00022548,2]
[312336706,1705792234085,-812.08455662,0.00022548,2]
[312336707,1705792234094,-452.32692292,0.00022559,2]
[312336708,1705792234103,-1632.64771975,0.00022562,2]
[312336709,1705792234112,-19133.17801413,0.00022562,2]
[312336710,1705792234122,-277.75127687,0.00022562,2]
[312336711,1705792234131,-156.44361902,0.00022562,2]
[312336712,1705792234141,-554.9851,0.00022564,2]
[312336713,1705792234149,-2942.4416,0.00022564,2]
[312336714,1705792234159,-1866.3407,0.00022564,2]
[312336715,1705792234168,-11895.6308,0.00022564,2]
[312336716,1705792234177,-7118.4551,0.00022564,2]
[312336717,1705792234186,-811.1716,0.00022564,2]
[312336718,1705792234195,-19029.79031895,0.00022564,2]
[312336719,1705792234209,-1062.38997499,0.00022564,2]
[312336720,1705792234220,-314.08501124,0.00022564,2]
[312336721,1705792234234,-819.09312441,0.00022564,2]
[312336722,1705792234265,-1495.10991762,0.00022564,2]
[312336723,1705792234278,-503.15432782,0.00022564,2]
[312336724,1705792234290,-1003.8665897,0.00022564,2]
[312336725,1705792234302,-55381.74213527,0.00022564,2]
[312336726,1705792234312,-1249.0,0.00022569,2]
[312336727,1705792234322,-156.7679,0.00022569,2]
[312336728,1705792234332,-1000.0,0.00022569,2]
[312336729,1705792234340,-20970.46856274,0.00022569,2]
[312336730,1705792234358,-155.0,0.00020037,2]
[312336731,1705792234368,-4071.95917431,0.00022569,2]
[312336732,1705792234381,-937.93475933,0.00022569,2]
[312336733,1705792234392,-442.76851,0.00022569,2]
[312336734,1705792234404,-765.85653679,0.00022569,2]
[312336735,1705792234415,-4102.82942095,0.00022569,2]
[312336736,1705792234429,-1071.35837695,0.00022569,2]
[312336737,1705792234441,-334.50747262,0.00022569,2]
[312336738,1705792234471,-714.69912125,0.00022569,2]
[312336739,1705792234493,-2435.05798908,0.00022569,2]
[312336740,1705792234506,-517.82129114,0.00022569,2]
[312336741,1705792234518,-1071.62439854,0.00022569,2]
[312336742,1705792234530,-416.3775075,0.00022569,2]
[312336743,1705792234543,-1061.32060187,0.00022569,2]
[312336750,1705792238277,-933.70237693,0.00022569,2]
[312336751,1705792238286,-15104.33414079,0.00022569,2]
[312336752,1705792238299,-58976.76282947,0.00022569,2]
[312336753,1705792238332,-3304.68100494,0.00022569,2]
[312336754,1705792238389,-22614.2220248,0.00022569,2]
[312336755,1705792238398,-1000.0,0.00022569,2]
[312336756,1705792238407,-245000.0,0.00022569,2]
[312336757,1705792238417,-1372.68475507,0.00022592,2]
[312336945,1705792241624,-641.64993376,0.00022592,2]
[312336972,1705792243301,-472.34972015,0.00022592,2]
[312336973,1705792243411,-1162.01156715,0.00022592,2]
[312336974,1705792243423,-6417.03202026,0.00022592,2]
[312336996,1705792246241,-369.52,0.00019972,2]
[312336998,1705792246251,-369.52,0.00022236,2]
[312337000,1705792246260,-281.36134761,0.00022591,2]
[312337002,1705792246269,-343.16217724,0.00022591,2]
[312337005,1705792246278,-300.67731306,0.00022591,2]
[312337007,1705792246289,-261.82774186,0.00022591,2]
[312337028,1705792247345,-279.60537105,0.0002244,2]
[312337029,1705792247356,-23.61384767,0.00022591,2]
[312337030,1705792247368,-159.32465892,0.00022591,2]
[312337031,1705792247379,-613.70782982,0.00022591,2]
[312337032,1705792247389,-1051.324382,0.00022591,2]
[312337038,1705792408998,3150.90226085,0.00035912,30]
[312337041,1705792686041,332.56,0.0001884,2]
[312337042,1705792688691,150.0,0.00035923,30]
[312337063,1705793258982,356.39,0.00018486,2]
[312337068,1705793310996,2000.0,0.0003593,30]
[312337070,1705793371557,2000.0,0.0003593,30]
[312337071,1705793397022,2000.0,0.0003593,30]
[312337072,1705793407653,2000.0,0.0003593,30]
[312337073,1705793429334,263.51244958,0.00019435,2]
[312337074,1705793429570,2000.0,0.0003593,30]
[312337087,1705793431383,-3330.5550022,0.00020164,2]
[312337088,1705793431393,-260.29229258,0.00020165,2]
[312337089,1705793431402,-310.31123781,0.00020165,2]
[312337090,1705793431411,-155.0,0.00020165,2]
[312337091,1705793431420,-3145.8449708,0.00020165,2]
[312337092,1705793431429,-242.58443095,0.00020165,2]
[312337093,1705793431438,-190.97652873,0.00020165,2]
[312337094,1705793431447,-488.2513139,0.00020166,2]
[312337095,1705793431457,-759.28292396,0.00020166,2]
[312337096,1705793431466,-228.3967642,0.00020167,2]
[312337097,1705793431475,-250.42352751,0.00020168,2]
[312337098,1705793431484,-327.32790039,0.00020168,2]
[312337099,1705793431493,-4628.20523515,0.00020168,2]
[312337100,1705793431502,-160.73027648,0.00020168,2]
[312337101,1705793431511,-867.50020387,0.00020169,2]
[312337102,1705793431520,-158.86466524,0.00020169,2]
[312337103,1705793431530,-418.28828988,0.00020169,2]
[312337104,1705793431539,-161.84530984,0.00020169,2]
[312337105,1705793431548,-150.0,0.00020169,2]
[312337106,1705793431557,-314.41237187,0.0002017,2]
[312337107,1705793431566,-3045.64408607,0.0002017,2]
[312337108,1705793431576,-301.41783471,0.0002017,2]
[312337109,1705793431585,-2140.25984846,0.0002017,2]
[312337110,1705793431596,-2320.76864865,0.0002017,2]
[312337111,1705793431616,-285.51851062,0.0002017,2]
[312337112,1705793431627,-2307.835347,0.00020171,2]
[312337113,1705793431637,-337.77789618,0.00020171,2]
[312337114,1705793431647,-5217.27578484,0.00020171,2]
[312337115,1705793431657,-195.7,0.00020176,2]
[312337116,1705793431666,-224.99,0.00020424,3]
[312337117,1705793431676,-10763.82,0.00020435,2]
[312337118,1705793431685,-190.31,0.00020436,2]
[312337119,1705793431695,-157.65,0.00020436,2]
[312337120,1705793431705,-20256.45,0.00020451,2]
[312337121,1705793431714,-827.2,0.00020471,2]
[312337122,1705793431724,-499.99,0.00020471,2]
[312337123,1705793431734,-200.0,0.00020477,2]
[312337124,1705793431744,-9999.99,0.00020477,2]
[312337127,1705793431754,-515.93,0.00020482,2]
[312337130,1705793431763,-152.65,0.00020541,2]
[312337133,1705793431773,-2000.0,0.00020548,2]
[312337136,1705793431783,-166.74,0.00020575,2]
[312337139,1705793431792,-9999.99,0.0002065,2]
[312337142,1705793431802,-784.04,0.0002065,2]
[312337145,1705793431812,-156.08,0.00020663,2]
[312337147,1705793431821,-243.73456165,0.00020688,2]
[312337148,1705793431831,-172.8,0.00020706,2]
[312337149,1705793431841,-999.99,0.00020731,2]
[312337150,1705793431851,-356.39,0.0002075,2]
[312337151,1705793431860,-1310.51,0.00020757,2]
[312337153,1705793431870,-152.65,0.00020898,2]
[312337155,1705793431879,-168.69,0.00021109,2]
[312337157,1705793431889,-204.0,0.00021221,2]
[312337159,1705793431899,-152.65,0.00021254,2]
[312337161,1705793431909,-176.36,0.00021291,2]
[312337163,1705793431919,-152.65,0.00021611,2]
[312337165,1705793431929,-1131.90579522,0.00021644,3]
[312337167,1705793431939,-926.46,0.00021644,2]
[312337169,1705793431949,-155.1,0.00021764,2]
[312337171,1705793431959,-150.0,0.000218,2]
[312337173,1705793431969,-568.6553,0.00021838,2]
[312337175,1705793431978,-550.4073,0.00021838,2]
[312337177,1705793431988,-510.0822,0.00021838,2]
[312337180,1705793431998,-176.36,0.00021839,2]
[312337182,1705793432008,-250.0,0.00021918,2]
[312337184,1705793432018,-159.12,0.00021924,2]
[312337186,1705793432027,-33510.4359,0.00021938,2]
[312337187,1705793432037,-4936.8178,0.00021968,2]
[312337188,1705793432047,-15918.7829,0.00021968,2]
[312337189,1705793432057,-4934.9636,0.00021968,2]
[312337190,1705793432067,-428.27905311,0.00022067,2]
[312337191,1705793432077,-35986.16377901,0.00022068,2]
[312337192,1705793432092,-1498.95358187,0.00022068,2]
[312337193,1705793432109,-410.0968622,0.00022068,2]
[312337194,1705793432122,-23584.78577692,0.00022068,2]
[312337195,1705793432132,-515.93,0.00022126,2]
[312337196,1705793432142,-3265.2954395,0.0002219,2]
[312337197,1705793432151,-14867.4261,0.00022191,2]
[312337198,1705793432161,-1000.0,0.00022191,2]
[312337199,1705793432171,-2500.0,0.00022191,2]
[312337200,1705793432180,-167.0230573,0.00022192,2]
[312337201,1705793432189,-159.61257698,0.00022227,2]
[312337202,1705793432199,-259.58211804,0.00022236,2]
[312337203,1705793432211,-376.93910244,0.00022279,2]
[312337204,1705793432222,-7134.53654452,0.00022289,2]
[312337205,1705793432234,-7109.54364909,0.00022289,2]
[312337206,1705793432246,-524.96989304,0.00022289,2]
[312337207,1705793432258,-608.8443858,0.00022289,2]
[312337208,1705793432270,-1258.57832661,0.00022289,2]
[312337209,1705793432282,-1075.8,0.00022289,2]
[312337210,1705793432295,-481.792402,0.00022289,2]
[312337211,1705793432307,-499.16534257,0.00022289,2]
[312337212,1705793432319,-6004.13120219,0.00022289,2]
[312337213,1705793432331,-1174.37054762,0.00022289,2]
[312337214,1705793432344,-10625.0,0.00022289,2]
[312337215,1705793432356,-3079.21785668,0.00022289,2]
[312337216,1705793432390,-538.88,0.00022289,2]
[312337217,1705793432403,-321.08700002,0.00022289,2]
[312337218,1705793432416,-639.91916815,0.00022289,2]
[312337219,1705793432428,-1216.44,0.00022289,2]
[312337220,1705793432440,-818.10924833,0.00022289,2]
[312337221,1705793432455,-1864.54905793,0.00022289,2]
[312337222,1705793432475,-363.0257753,0.00022289,2]
[312337223,1705793432501,-576.23513454,0.00022289,2]
[312337224,1705793432513,-2139.25,0.00022289,2]
[312337225,1705793432526,-12830.1,0.00022289,2]
[312337245,1705793437419,-365.99022689,0.00020164,2]
[312337246,1705793437574,-11.07119661,0.00020164,2]
[312337247,1705793437584,-219.94864364,0.0002219,2]
[312337248,1705793437594,-50363.96947604,0.00022289,2]
[312337249,1705793437644,-486.893,0.00022289,2]
[312337250,1705793437656,-945660.3319818,0.00022289,2]
[312337251,1705793437666,-500.0,0.0002229,2]
[312337252,1705793437676,-5000.0,0.00022362,2]
[312337253,1705793437686,-1112.89538861,0.00022362,2]
[312337254,1705793437696,-220.35900405,0.00022362,2]
[312337255,1705793437705,-159.61257698,0.00022362,2]
[312337256,1705793437715,-295.66032804,0.00022362,2]
[312337257,1705793437725,-282.7255077,0.00022362,2]
[312337258,1705793437735,-257.73560103,0.00022362,2]
[312337259,1705793437745,-219.9486436,0.00022368,2]
[312337260,1705793437755,-176.36,0.00022387,2]
[312337261,1705793437765,-100000.0,0.00022392,2]
[312337262,1705793437776,-1112.89538856,0.00022411,2]
[312337263,1705793437785,-926.46,0.00022445,2]
[312337264,1705793437795,-1112.89538856,0.0002246,2]
[312337265,1705793437805,-39863.6386,0.00022462,2]
[312337266,1705793437816,-1000.0,0.00022462,2]
[312337267,1705793437829,-245000.0,0.00022462,2]
[312337268,1705793437840,-1000.0,0.00022462,2]
[312337269,1705793437850,-500.0,0.00022462,2]
[312337270,1705793437860,-1112.89538856,0.00022509,2]
[312337271,1705793437871,-1112.89538856,0.00022558,2]
[312337272,1705793437881,-1629.12439798,0.0002259,2]
[312337273,1705793437891,-225.78302,0.00022591,2]
[312337274,1705793437902,-355.57280886,0.00022591,2]
[312337275,1705793437911,-1906.16415375,0.00022591,2]
[312337276,1705793437922,-232.05416843,0.00022591,2]
[312337277,1705793437932,-782.74856615,0.00022591,2]
[312337278,1705793437942,-236.26348042,0.00022591,2]
[312337279,1705793437963,-1112.89538856,0.00022607,2]
[312337280,1705793437974,-295.66032804,0.00022631,2]
[312337281,1705793437985,-282.7255077,0.00022631,2]
[312337282,1705793437995,-257.73560103,0.00022631,2]
[312337283,1705793438005,-1112.89538856,0.00022655,2]
[312337284,1705793438015,-155.00003825,0.0002266,2]
[312337285,1705793438025,-155.0,0.00022662,2]
[312337286,1705793438036,-230.3513771,0.00022662,2]
[312337287,1705793438045,-2144.43375818,0.00022662,2]
[312337288,1705793438056,-155.0,0.00022662,2]
[312337289,1705793438067,-159.23180862,0.00022662,2]
[312337290,1705793438077,-239.39981006,0.00022662,2]
[312337292,1705793438087,-1191.8125891,0.00022662,2]
[312337293,1705793438097,-290.04601327,0.00022662,2]
[312337294,1705793438108,-155.15859743,0.00022662,2]
[312337295,1705793438118,-3030.11138034,0.00022662,2]
[312337296,1705793438128,-295.40555488,0.00022662,2]
[312337297,1705793438138,-1050.58506121,0.00022662,2]
[312337298,1705793438149,-280.623262,0.00022662,2]
[312337299,1705793438160,-155.000002,0.00022662,2]
[312337300,1705793438170,-155.36631015,0.00022662,2]
[312337301,1705793438180,-194.45301712,0.00022662,2]
[312337302,1705793438190,-155.29862635,0.00022662,2]
[312337304,1705793438200,-204.48932745,0.00022662,2]
[312337306,1705793438211,-155.41219897,0.00022662,2]
[312337308,1705793438222,-177.22597115,0.00022662,2]
[312337310,1705793438232,-155.0,0.00022662,2]
[312337312,1705793438242,-155.0,0.00022662,2]
[312337314,1705793438252,-1175.41173405,0.00022662,2]
[312337316,1705793438262,-156.23379136,0.00022662,2]
[312337319,1705793438273,-155.46061206,0.00022662,2]
[312337321,1705793438283,-155.68058134,0.00022662,2]
[312337323,1705793438293,-156.3108793,0.00022662,2]
[312337325,1705793438304,-581.48502557,0.00022662,2]